[Event "*** Titled Tuesday 3|2 Blitz"]
[Site "Chess.com"]
[Date "2017.06.06"]
[Round "9"]
[White "fidetrainerNET"]
[Black "bugbug01052018"]
[Result "1-0"]
[WhiteElo "2113"]
[BlackElo "1923"]
[TimeControl "180+2"]
[EndTime "15:49:24 PDT"]
[Termination "fidetrainerNET won by resignation"]

1. e4 {[%clk 0:02:56.8]} 1... c5 {[%clk 0:03:00.4]} 2. Nf3 {[%clk 0:02:54.6]}
2... d6 {[%clk 0:03:01.9]} 3. d4 {[%clk 0:02:55]} 3... cxd4 {[%clk 0:03:03.2]}
4. c3 {[%clk 0:02:55.9]} 4... Nf6 {[%clk 0:03:02.2]} 5. Bc4 {[%clk 0:02:50.7]}
5... dxc3 {[%clk 0:03:01.9]} 6. Nxc3 {[%clk 0:02:50]} 6... e6 {[%clk 0:03:02.8]}
7. Qe2 {[%clk 0:02:50.4]} 7... Qc7 {[%clk 0:03:02.6]} 8. O-O {[%clk 0:02:51.8]}
8... a6 {[%clk 0:03:03.3]} 9. Bf4 {[%clk 0:02:50.3]} 9... Nc6 {[%clk 0:03:02.7]}
10. Rac1 {[%clk 0:02:46.8]} 10... Be7 {[%clk 0:03:03.7]} 11. e5 {[%clk
0:02:38.3]} 11... dxe5 {[%clk 0:03:04]} 12. Nxe5 {[%clk 0:02:40.2]} 12... Nxe5
{[%clk 0:03:04.5]} 13. Bxe5 {[%clk 0:02:39.8]} 13... Bd6 {[%clk 0:03:05.9]} 14.
Bxf6 {[%clk 0:02:40.6]} 14... Bxh2+ {[%clk 0:02:59.9]} 15. Kh1 {[%clk
0:02:40.8]} 15... gxf6 {[%clk 0:03:00.9]} 16. g3 {[%clk 0:02:42.2]} 16... Bxg3
{[%clk 0:03:01.2]} 17. fxg3 {[%clk 0:02:44.1]} 17... Qxg3 {[%clk 0:03:01.3]} 18.
Qh2 {[%clk 0:02:43.4]} 18... Qxh2+ {[%clk 0:02:59.6]} 19. Kxh2 {[%clk 0:02:43]}
19... Bd7 {[%clk 0:03:01.1]} 20. Rxf6 {[%clk 0:02:42.4]} 20... Rc8 {[%clk
0:03:01.1]} 21. Bd3 {[%clk 0:02:40.7]} 21... Ke7 {[%clk 0:02:57.7]} 22. Rcf1
{[%clk 0:02:35.4]} 22... Be8 {[%clk 0:02:57.6]} 23. Ne4 {[%clk 0:02:29.4]} 23...
Rd8 {[%clk 0:02:57.7]} 24. Bc2 {[%clk 0:02:28]} 24... Bc6 {[%clk 0:02:56.9]} 25.
Ng5 {[%clk 0:02:24.8]} 25... Rd2+ {[%clk 0:02:56.3]} 26. R1f2 {[%clk 0:02:25.3]}
26... Rxf2+ {[%clk 0:02:56]} 27. Rxf2 {[%clk 0:02:26.3]} 27... f6 {[%clk
0:02:56.1]} 28. Ne4 {[%clk 0:02:22.4]} 28... f5 {[%clk 0:02:53.5]} 29. Nc5
{[%clk 0:02:20.7]} 29... Kd6 {[%clk 0:02:52.6]} 30. b4 {[%clk 0:02:18.2]} 30...
a5 {[%clk 0:02:47.5]} 31. Rd2+ {[%clk 0:02:19.6]} 31... Ke7 {[%clk 0:02:46.6]}
32. bxa5 {[%clk 0:02:19.3]} 32... Ra8 {[%clk 0:02:46]} 33. Bb3 {[%clk
0:02:18.7]} 33... Rxa5 {[%clk 0:02:43.1]} 34. Nxe6 {[%clk 0:02:14.3]} 34... Re5
{[%clk 0:02:42.8]} 35. Nd4 {[%clk 0:02:12.3]} 35... Kf6 {[%clk 0:02:38]} 36.
Nxc6 {[%clk 0:02:09.2]} 36... bxc6 {[%clk 0:02:39.2]} 37. Rd6+ {[%clk
0:02:09.6]} 37... Kg5 {[%clk 0:02:40.6]} 38. Rxc6 {[%clk 0:02:10.4]} 38... h5
{[%clk 0:02:41.2]} 39. Re6 {[%clk 0:02:07]} 39... Rc5 {[%clk 0:02:36.6]} 40. Re8
{[%clk 0:02:03.6]} 40... Kf4 {[%clk 0:02:34.5]} 41. Rh8 {[%clk 0:02:01.7]} 41...
Kg4 {[%clk 0:02:35]} 42. Bd1+ {[%clk 0:02:00]} 42... Kf4 {[%clk 0:02:33.8]} 43.
Rxh5 {[%clk 0:01:59.2]} 43... Rc1 {[%clk 0:02:34.1]} 44. Bb3 {[%clk 0:01:56.3]}
44... Re1 {[%clk 0:02:30.7]} 45. Rh4+ {[%clk 0:01:55.8]} 45... Ke3 {[%clk
0:02:28.9]} 46. Kg2 {[%clk 0:01:50.3]} 46... f4 {[%clk 0:02:29.6]} 47. Rh3+
{[%clk 0:01:48.9]} 47... Ke4 {[%clk 0:02:28.9]} 48. Kf2 {[%clk 0:01:46.5]} 48...
Ra1 {[%clk 0:02:24.9]} 49. Bc2+ {[%clk 0:01:43]} 49... Kd4 {[%clk 0:02:23.8]}
50. Bb3 {[%clk 0:01:41.8]} 50... Ke4 {[%clk 0:02:24.3]} 51. Rh7 {[%clk
0:01:40.3]} 51... Rc1 {[%clk 0:02:19.2]} 52. Re7+ {[%clk 0:01:42.2]} 52... Kd4
{[%clk 0:02:18.7]} 53. Re1 {[%clk 0:01:35.9]} 53... Rc7 {[%clk 0:02:14.9]} 54.
Kf3 {[%clk 0:01:34.4]} 54... Rh7 {[%clk 0:02:04.8]} 55. Kxf4 {[%clk 0:01:33]}
55... Rh2 {[%clk 0:02:05.5]} 56. Rd1+ {[%clk 0:01:32.2]} 56... Kc3 {[%clk
0:02:06.1]} 57. Ke3 {[%clk 0:01:32.7]} 57... Rh3+ {[%clk 0:02:06.1]} 58. Ke4
{[%clk 0:01:33.1]} 58... Rh4+ {[%clk 0:02:06.8]} 59. Kd5 {[%clk 0:01:35]} 59...
Rh5+ {[%clk 0:02:07.5]} 60. Kc6 {[%clk 0:01:35.5]} 60... Rh6+ {[%clk 0:02:08.2]}
61. Kb5 {[%clk 0:01:36.1]} 61... Rh5+ {[%clk 0:02:08.6]} 62. Ka4 {[%clk
0:01:35.3]} 62... Rh4+ {[%clk 0:02:09.2]} 63. Ka3 {[%clk 0:01:35.6]} 63... Rh8
{[%clk 0:02:08.3]} 64. Rc1+ {[%clk 0:01:35.7]} 64... Kd2 {[%clk 0:02:07.5]} 65.
Rc4 {[%clk 0:01:31.8]} 65... Kd3 {[%clk 0:02:04.6]} 66. Rc5 {[%clk 0:01:30.6]}
66... Kd4 {[%clk 0:01:59.5]} 67. Kb4 {[%clk 0:01:31.1]} 67... Kd3 {[%clk
0:01:55.1]} 68. Rd5+ {[%clk 0:01:30.7]} 68... Ke4 {[%clk 0:01:55]} 69. a4 {[%clk
0:01:32.6]} 69... Rb8+ {[%clk 0:01:53.7]} 70. Rb5 {[%clk 0:01:34.5]} 70... Rd8
{[%clk 0:01:53.6]} 71. a5 {[%clk 0:01:32.8]} 71... Ra8 {[%clk 0:01:53.9]} 72.
Bd5+ {[%clk 0:01:29.7]} 1-0

[Event "*** Titled Tuesday 3|2 Blitz"]
[Site "Chess.com"]
[Date "2017.06.06"]
[Round "9"]
[White "robbykevlishvili"]
[Black "saraswathii"]
[Result "1-0"]
[WhiteElo "2122"]
[BlackElo "2270"]
[TimeControl "180+2"]
[EndTime "15:49:25 PDT"]
[Termination "robbykevlishvili won by resignation"]

1. e4 {[%clk 0:01:44.6]} 1... c5 {[%clk 0:02:59]} 2. b4 {[%clk 0:01:44.9]} 2...
cxb4 {[%clk 0:02:57]} 3. a3 {[%clk 0:01:44.8]} 3... e6 {[%clk 0:02:54.2]} 4.
axb4 {[%clk 0:01:44.8]} 4... Bxb4 {[%clk 0:02:54.5]} 5. c3 {[%clk 0:01:45.9]}
5... Be7 {[%clk 0:02:55.2]} 6. d4 {[%clk 0:01:46.8]} 6... d5 {[%clk 0:02:55.8]}
7. e5 {[%clk 0:01:47.9]} 7... Nc6 {[%clk 0:02:56.1]} 8. Ba3 {[%clk 0:01:48.7]}
8... a6 {[%clk 0:02:53.9]} 9. Nf3 {[%clk 0:01:45.2]} 9... Bxa3 {[%clk 0:02:47]}
10. Nxa3 {[%clk 0:01:45.4]} 10... Nge7 {[%clk 0:02:46.5]} 11. Nb5 {[%clk
0:01:45.8]} 11... O-O {[%clk 0:02:41.8]} 12. Nd6 {[%clk 0:01:46.8]} 12... Nf5
{[%clk 0:02:42.6]} 13. Nxf5 {[%clk 0:01:46.3]} 13... exf5 {[%clk 0:02:44.5]} 14.
Bd3 {[%clk 0:01:45.1]} 14... Be6 {[%clk 0:02:40.8]} 15. O-O {[%clk 0:01:45.7]}
15... Rc8 {[%clk 0:02:40.6]} 16. Qd2 {[%clk 0:01:45.8]} 16... Na5 {[%clk
0:02:34.6]} 17. Rfb1 {[%clk 0:01:45.7]} 17... b5 {[%clk 0:02:22.6]} 18. Qa2
{[%clk 0:01:42.6]} 18... Nc4 {[%clk 0:02:13.4]} 19. Qxa6 {[%clk 0:01:43.1]}
19... g6 {[%clk 0:01:58.1]} 20. Qxb5 {[%clk 0:01:41.4]} 20... Rb8 {[%clk
0:01:48.3]} 21. Qxb8 {[%clk 0:01:39.9]} 21... Qxb8 {[%clk 0:01:50.2]} 22. Rxb8
{[%clk 0:01:39.3]} 22... Rxb8 {[%clk 0:01:52.1]} 23. Rb1 {[%clk 0:01:40.1]}
23... Ra8 {[%clk 0:01:41]} 24. Ng5 {[%clk 0:01:38.8]} 24... Nd2 {[%clk
0:01:19.7]} 25. Rd1 {[%clk 0:01:36.8]} 25... Ne4 {[%clk 0:01:17]} 26. Bxe4
{[%clk 0:01:35.4]} 26... fxe4 {[%clk 0:01:15.2]} 27. c4 {[%clk 0:01:32]} 27...
dxc4 {[%clk 0:01:08.6]} 28. Nxe4 {[%clk 0:01:29.1]} 28... Rd8 {[%clk 0:01:03]}
29. d5 {[%clk 0:01:26.1]} 29... Kg7 {[%clk 0:00:59.5]} 30. Nc3 {[%clk
0:01:25.1]} 30... Bf5 {[%clk 0:00:55.2]} 31. f4 {[%clk 0:01:22.7]} 31... h6
{[%clk 0:00:50.7]} 32. Kf2 {[%clk 0:01:23.6]} 32... Ra8 {[%clk 0:00:46.6]} 33.
Ke3 {[%clk 0:01:24.1]} 33... Rc8 {[%clk 0:00:36]} 34. Kd4 {[%clk 0:01:20.4]}
34... g5 {[%clk 0:00:23.3]} 35. g3 {[%clk 0:01:18.8]} 35... Bd3 {[%clk
0:00:21.3]} 36. Ra1 {[%clk 0:01:18.1]} 36... Rb8 {[%clk 0:00:19.5]} 37. Ra7
{[%clk 0:01:18.7]} 37... Kg6 {[%clk 0:00:19.7]} 38. d6 {[%clk 0:01:15.5]} 38...
gxf4 {[%clk 0:00:19.2]} 39. gxf4 {[%clk 0:01:14.7]} 39... Rd8 {[%clk 0:00:17.7]}
40. Nd5 {[%clk 0:01:15.3]} 40... h5 {[%clk 0:00:13.6]} 41. Ne7+ {[%clk
0:01:15.9]} 41... Kh6 {[%clk 0:00:13.5]} 42. Nc6 {[%clk 0:01:16.4]} 1-0

[Event "*** Titled Tuesday 3|2 Blitz"]
[Site "Chess.com"]
[Date "2017.06.06"]
[Round "9"]
[White "amurdercastle"]
[Black "djano"]
[Result "0-1"]
[WhiteElo "2282"]
[BlackElo "2334"]
[TimeControl "180+2"]
[EndTime "15:49:56 PDT"]
[Termination "djano won by resignation"]

1. d4 {[%clk 0:02:32.1]} 1... f5 {[%clk 0:02:59.1]} 2. c4 {[%clk 0:02:31.9]}
2... Nf6 {[%clk 0:02:59.2]} 3. Nf3 {[%clk 0:02:31.1]} 3... e6 {[%clk 0:03:00.1]}
4. Nc3 {[%clk 0:02:30.1]} 4... Be7 {[%clk 0:02:59.7]} 5. e3 {[%clk 0:02:30.3]}
5... d6 {[%clk 0:02:59.7]} 6. Rb1 {[%clk 0:02:28.1]} 6... a5 {[%clk 0:02:59.2]}
7. a3 {[%clk 0:02:28.9]} 7... O-O {[%clk 0:02:59.3]} 8. b4 {[%clk 0:02:30]} 8...
axb4 {[%clk 0:03:00.7]} 9. axb4 {[%clk 0:02:31.9]} 9... Ne4 {[%clk 0:03:02]} 10.
Bb2 {[%clk 0:02:29.7]} 10... b6 {[%clk 0:02:59.8]} 11. Bd3 {[%clk 0:02:20.1]}
11... Bb7 {[%clk 0:03:00.3]} 12. Qc2 {[%clk 0:02:21]} 12... Nxc3 {[%clk
0:02:56.5]} 13. Bxc3 {[%clk 0:02:22.9]} 13... Nd7 {[%clk 0:02:34.2]} 14. O-O
{[%clk 0:01:51.5]} 14... Nf6 {[%clk 0:02:34.7]} 15. Nd2 {[%clk 0:01:49.9]} 15...
Qe8 {[%clk 0:02:28]} 16. e4 {[%clk 0:01:45.7]} 16... Qg6 {[%clk 0:02:28.1]} 17.
f3 {[%clk 0:01:43]} 17... fxe4 {[%clk 0:02:24.3]} 18. Nxe4 {[%clk 0:01:43.2]}
18... Nxe4 {[%clk 0:02:18.2]} 19. fxe4 {[%clk 0:01:31]} 19... Qg5 {[%clk
0:01:56.2]} 20. Qe2 {[%clk 0:01:12.8]} 20... e5 {[%clk 0:01:53.5]} 21. Bd2
{[%clk 0:00:52.5]} 21... Qg6 {[%clk 0:01:51.1]} 22. d5 {[%clk 0:00:47.8]} 22...
Bg5 {[%clk 0:01:48.6]} 23. Bxg5 {[%clk 0:00:37.6]} 23... Qxg5 {[%clk 0:01:50.5]}
24. c5 {[%clk 0:00:33.4]} 24... Rxf1+ {[%clk 0:01:42]} 25. Kxf1 {[%clk
0:00:32.2]} 25... Rf8+ {[%clk 0:01:24.8]} 26. Kg1 {[%clk 0:00:31]} 26... Bc8
{[%clk 0:01:26.4]} 27. cxd6 {[%clk 0:00:19.1]} 27... Bg4 {[%clk 0:01:20.6]} 28.
Qe1 {[%clk 0:00:20.2]} 28... Bf3 {[%clk 0:01:10.9]} 29. Qg3 {[%clk 0:00:20.8]}
29... Qe3+ {[%clk 0:01:12]} 30. Kh1 {[%clk 0:00:20.9]} 30... Qxd3 {[%clk
0:01:13.4]} 31. Rg1 {[%clk 0:00:18.8]} 31... Bxe4 {[%clk 0:00:40.4]} 32. dxc7
{[%clk 0:00:14.9]} 32... Qxd5 {[%clk 0:00:38.1]} 33. h3 {[%clk 0:00:12.7]} 33...
Bf5 {[%clk 0:00:29.2]} 34. Rc1 {[%clk 0:00:12.9]} 34... Bc8 {[%clk 0:00:29]} 35.
Qg5 {[%clk 0:00:11.3]} 35... Bb7 {[%clk 0:00:28]} 36. Kh2 {[%clk 0:00:11]} 36...
h6 {[%clk 0:00:28.7]} 37. Qg3 {[%clk 0:00:11.5]} 37... h5 {[%clk 0:00:27.2]} 38.
Rc2 {[%clk 0:00:09.6]} 38... Rc8 {[%clk 0:00:25.8]} 39. Qc3 {[%clk 0:00:08.7]}
39... h4 {[%clk 0:00:23.7]} 40. Qe3 {[%clk 0:00:09.3]} 40... Qd4 {[%clk
0:00:23.5]} 41. Qg5 {[%clk 0:00:09.8]} 41... Qf4+ {[%clk 0:00:23.8]} 42. Qxf4
{[%clk 0:00:10.3]} 42... exf4 {[%clk 0:00:25.7]} 43. Kg1 {[%clk 0:00:11.5]}
43... Kf7 {[%clk 0:00:25.2]} 44. Rc4 {[%clk 0:00:11.7]} 44... g5 {[%clk
0:00:25.5]} 45. b5 {[%clk 0:00:12.1]} 45... Ke6 {[%clk 0:00:26.2]} 46. Kf2
{[%clk 0:00:14]} 46... Kd6 {[%clk 0:00:26.7]} 47. Rc3 {[%clk 0:00:15.9]} 0-1

[Event "*** Titled Tuesday 3|2 Blitz"]
[Site "Chess.com"]
[Date "2017.06.06"]
[Round "9"]
[White "Blitzstream"]
[Black "stefanodinn"]
[Result "1-0"]
[WhiteElo "2465"]
[BlackElo "2253"]
[TimeControl "180+2"]
[EndTime "15:50:13 PDT"]
[Termination "Blitzstream won on time"]

1. d4 {[%clk 0:03:02]} 1... d5 {[%clk 0:02:59]} 2. Bf4 {[%clk 0:03:02.7]} 2...
Nf6 {[%clk 0:02:58.7]} 3. Nf3 {[%clk 0:03:03.6]} 3... e6 {[%clk 0:02:59.4]} 4.
e3 {[%clk 0:03:03.5]} 4... Bd6 {[%clk 0:03:00.5]} 5. Bg3 {[%clk 0:03:04]} 5...
O-O {[%clk 0:02:57.7]} 6. Bd3 {[%clk 0:03:00.9]} 6... b6 {[%clk 0:02:58.6]} 7.
Nbd2 {[%clk 0:02:59.9]} 7... Ba6 {[%clk 0:02:55.4]} 8. Ne5 {[%clk 0:02:50]} 8...
Bxd3 {[%clk 0:02:52.4]} 9. cxd3 {[%clk 0:02:50.6]} 9... c5 {[%clk 0:02:53.3]}
10. dxc5 {[%clk 0:02:50.2]} 10... bxc5 {[%clk 0:02:53.2]} 11. O-O {[%clk
0:02:43.2]} 11... Qc7 {[%clk 0:02:54.3]} 12. Ndf3 {[%clk 0:02:39.1]} 12... Nc6
{[%clk 0:02:47.7]} 13. Nxc6 {[%clk 0:02:39.2]} 13... Qxc6 {[%clk 0:02:38.7]} 14.
Rc1 {[%clk 0:02:39.6]} 14... Rfc8 {[%clk 0:02:26.9]} 15. Rc2 {[%clk 0:02:38.7]}
15... Rab8 {[%clk 0:02:23.1]} 16. Qe2 {[%clk 0:02:38.7]} 16... Bxg3 {[%clk
0:02:16.4]} 17. hxg3 {[%clk 0:02:38.9]} 17... Qb5 {[%clk 0:02:07.1]} 18. Rfc1
{[%clk 0:02:39.2]} 18... h6 {[%clk 0:02:07]} 19. Nd4 {[%clk 0:02:34.3]} 19...
Qb4 {[%clk 0:01:43.1]} 20. Nb3 {[%clk 0:02:30.8]} 20... Nd7 {[%clk 0:01:38.4]}
21. Qf3 {[%clk 0:02:10.8]} 21... a5 {[%clk 0:01:35.3]} 22. Qf4 {[%clk
0:02:11.1]} 22... a4 {[%clk 0:01:00.7]} 23. Nd4 {[%clk 0:01:23.8]} 23... e5
{[%clk 0:00:51.7]} 24. Qf5 {[%clk 0:01:24.3]} 24... exd4 {[%clk 0:00:51.1]} 25.
Qxd7 {[%clk 0:01:24.4]} 25... dxe3 {[%clk 0:00:41.4]} 26. Qxd5 {[%clk 0:01:25]}
26... exf2+ {[%clk 0:00:39.2]} 27. Rxf2 {[%clk 0:01:26.9]} 27... Rc7 {[%clk
0:00:34.6]} 28. Rcf1 {[%clk 0:01:16.3]} 28... Qd4 {[%clk 0:00:22.1]} 29. Qc4
{[%clk 0:01:11.7]} 29... Qxc4 {[%clk 0:00:19.9]} 30. dxc4 {[%clk 0:01:12.3]}
30... Rb4 {[%clk 0:00:20.7]} 31. Rc1 {[%clk 0:01:11.3]} 31... Rcb7 {[%clk
0:00:20.2]} 32. Rcc2 {[%clk 0:01:12.5]} 32... Rd7 {[%clk 0:00:19.8]} 33. Rf3
{[%clk 0:01:11.2]} 33... Rd4 {[%clk 0:00:19.6]} 34. b3 {[%clk 0:01:11.9]} 34...
axb3 {[%clk 0:00:20.4]} 35. axb3 {[%clk 0:01:04.2]} 35... g6 {[%clk 0:00:18.6]}
36. Ra2 {[%clk 0:01:02.6]} 36... Rd7 {[%clk 0:00:16.8]} 37. Ra5 {[%clk
0:01:01.9]} 37... Rdb7 {[%clk 0:00:16.5]} 38. Ra3 {[%clk 0:00:57.3]} 38... Kg7
{[%clk 0:00:16.1]} 39. Kf2 {[%clk 0:00:58.9]} 39... Re7 {[%clk 0:00:14.5]} 40.
Ra5 {[%clk 0:00:59.2]} 40... Reb7 {[%clk 0:00:15.1]} 41. Ra3 {[%clk 0:01:00]}
41... Re7 {[%clk 0:00:14]} 42. Re3 {[%clk 0:01:01.3]} 42... Reb7 {[%clk
0:00:12.1]} 43. Ke2 {[%clk 0:01:01.3]} 43... h5 {[%clk 0:00:12.8]} 44. Kd2
{[%clk 0:01:02.6]} 44... Rd7+ {[%clk 0:00:08.1]} 45. Kc2 {[%clk 0:01:02.8]}
45... Rbb7 {[%clk 0:00:05.6]} 46. Ra5 {[%clk 0:01:02.6]} 46... Rbc7 {[%clk
0:00:03.6]} 47. Re5 {[%clk 0:01:02.7]} 47... Re7 {[%clk 0:00:03.7]} 48. Raxc5
{[%clk 0:00:54.7]} 48... Rxc5 {[%clk 0:00:02.7]} 49. Rxe7 {[%clk 0:00:55.6]}
49... Rg5 {[%clk 0:00:02.4]} 50. Re3 {[%clk 0:00:55.5]} 50... h4 {[%clk
0:00:02.3]} 51. b4 {[%clk 0:00:57]} 51... hxg3 {[%clk 0:00:02.3]} 52. b5 {[%clk
0:00:58.2]} 52... Kf6 {[%clk 0:00:02.9]} 53. b6 {[%clk 0:00:58.9]} 1-0

[Event "*** Titled Tuesday 3|2 Blitz"]
[Site "Chess.com"]
[Date "2017.06.06"]
[Round "9"]
[White "1lec"]
[Black "Colombiano07"]
[Result "0-1"]
[WhiteElo "2053"]
[BlackElo "2292"]
[TimeControl "180+2"]
[EndTime "15:50:25 PDT"]
[Termination "Colombiano07 won by resignation"]

1. e4 {[%clk 0:03:02]} 1... e6 {[%clk 0:02:55.8]} 2. d4 {[%clk 0:03:02.9]} 2...
d5 {[%clk 0:02:56.1]} 3. Nd2 {[%clk 0:03:04.2]} 3... Nf6 {[%clk 0:02:56.4]} 4.
e5 {[%clk 0:03:05.3]} 4... Nfd7 {[%clk 0:02:57.6]} 5. Bd3 {[%clk 0:03:06.9]}
5... c5 {[%clk 0:02:59]} 6. c3 {[%clk 0:03:08.6]} 6... Nc6 {[%clk 0:03:00.6]} 7.
Ne2 {[%clk 0:03:10.1]} 7... cxd4 {[%clk 0:03:02.1]} 8. cxd4 {[%clk 0:03:12]}
8... f6 {[%clk 0:03:03.6]} 9. exf6 {[%clk 0:03:12.9]} 9... Nxf6 {[%clk
0:03:05.5]} 10. Nf3 {[%clk 0:03:14]} 10... Qc7 {[%clk 0:03:01.2]} 11. Bf4 {[%clk
0:03:05]} 11... Bd6 {[%clk 0:03:01.5]} 12. Bxd6 {[%clk 0:03:05.6]} 12... Qxd6
{[%clk 0:03:03.4]} 13. O-O {[%clk 0:03:06.8]} 13... O-O {[%clk 0:03:04]} 14. h3
{[%clk 0:02:17.5]} 14... Bd7 {[%clk 0:03:01.3]} 15. Nc3 {[%clk 0:02:17.9]} 15...
a6 {[%clk 0:02:43.6]} 16. Re1 {[%clk 0:02:15.8]} 16... Be8 {[%clk 0:02:39.8]}
17. Ne5 {[%clk 0:02:09.3]} 17... Qe7 {[%clk 0:02:06.4]} 18. a3 {[%clk
0:01:23.9]} 18... Rc8 {[%clk 0:01:45.8]} 19. Bc2 {[%clk 0:01:20.9]} 19... Nxe5
{[%clk 0:01:27.9]} 20. Rxe5 {[%clk 0:01:06.2]} 20... Bf7 {[%clk 0:01:04.4]} 21.
Qe2 {[%clk 0:00:56]} 21... Qd6 {[%clk 0:00:59]} 22. Re1 {[%clk 0:00:51.2]} 22...
Qb6 {[%clk 0:00:57.2]} 23. Qd2 {[%clk 0:00:46.4]} 23... Kh8 {[%clk 0:00:54.6]}
24. Bb1 {[%clk 0:00:38.6]} 24... Bg8 {[%clk 0:00:52.2]} 25. Na4 {[%clk
0:00:29.9]} 25... Qd6 {[%clk 0:00:42.8]} 26. Nc5 {[%clk 0:00:29.9]} 26... Rxc5
{[%clk 0:00:32.5]} 27. dxc5 {[%clk 0:00:30.2]} 27... Qxc5 {[%clk 0:00:34.4]} 28.
Qe3 {[%clk 0:00:23.2]} 28... Qd6 {[%clk 0:00:28.9]} 29. Qd4 {[%clk 0:00:21.7]}
29... Rc8 {[%clk 0:00:28.1]} 30. Bd3 {[%clk 0:00:21.1]} 30... Nd7 {[%clk
0:00:23.1]} 31. Rh5 {[%clk 0:00:19]} 31... e5 {[%clk 0:00:22.8]} 32. Qh4 {[%clk
0:00:18.1]} 32... e4 {[%clk 0:00:19.3]} 33. Bb1 {[%clk 0:00:13.3]} 33... Nf6
{[%clk 0:00:19.6]} 34. Rg5 {[%clk 0:00:12.8]} 34... Qb6 {[%clk 0:00:18.8]} 35.
b4 {[%clk 0:00:05.5]} 35... Qd4 {[%clk 0:00:19.6]} 36. Qf4 {[%clk 0:00:05.2]}
36... Qc3 {[%clk 0:00:19.1]} 37. Qe3 {[%clk 0:00:05.5]} 37... Qxe3 {[%clk
0:00:18.8]} 38. fxe3 {[%clk 0:00:06.8]} 38... Rc3 {[%clk 0:00:18.9]} 39. Re5
{[%clk 0:00:05.4]} 39... Rxa3 {[%clk 0:00:19]} 40. Kf2 {[%clk 0:00:06.8]} 40...
Rb3 {[%clk 0:00:19.7]} 41. Ba2 {[%clk 0:00:07.4]} 41... Rb2+ {[%clk 0:00:20.3]}
42. Re2 {[%clk 0:00:08.1]} 42... Rxb4 {[%clk 0:00:22]} 43. g4 {[%clk 0:00:08.9]}
43... h6 {[%clk 0:00:22.8]} 44. Kg3 {[%clk 0:00:08.9]} 44... a5 {[%clk
0:00:23.1]} 45. h4 {[%clk 0:00:10]} 45... Rb6 {[%clk 0:00:21.9]} 46. g5 {[%clk
0:00:11]} 46... Nh5+ {[%clk 0:00:22.4]} 47. Kg4 {[%clk 0:00:11.3]} 47... g6
{[%clk 0:00:23.9]} 48. gxh6 {[%clk 0:00:11.9]} 48... Kh7 {[%clk 0:00:24]} 49.
Bxd5 {[%clk 0:00:12.3]} 49... Bxd5 {[%clk 0:00:24.8]} 50. Re7+ {[%clk
0:00:12.7]} 50... Kxh6 {[%clk 0:00:25.2]} 51. Rf2 {[%clk 0:00:12.9]} 51... Be6+
{[%clk 0:00:26.2]} 52. Rxe6 {[%clk 0:00:09]} 52... Rxe6 {[%clk 0:00:28.1]} 0-1

[Event "*** Titled Tuesday 3|2 Blitz"]
[Site "Chess.com"]
[Date "2017.06.06"]
[Round "9"]
[White "TrickyTrapChess"]
[Black "GMHess"]
[Result "0-1"]
[WhiteElo "2296"]
[BlackElo "2637"]
[TimeControl "180+2"]
[EndTime "15:50:31 PDT"]
[Termination "GMHess won by resignation"]

1. c4 {[%clk 0:03:02]} 1... g6 {[%clk 0:02:58.3]} 2. Nc3 {[%clk 0:03:00.6]} 2...
Bg7 {[%clk 0:02:59.5]} 3. g3 {[%clk 0:02:59.5]} 3... c5 {[%clk 0:03:00.7]} 4.
Bg2 {[%clk 0:02:58.2]} 4... Nc6 {[%clk 0:03:02.2]} 5. Nf3 {[%clk 0:02:45.1]}
5... Nh6 {[%clk 0:03:02.5]} 6. O-O {[%clk 0:02:43.7]} 6... O-O {[%clk
0:03:03.5]} 7. e3 {[%clk 0:02:37.6]} 7... Nf5 {[%clk 0:03:03.1]} 8. d3 {[%clk
0:02:36.2]} 8... a6 {[%clk 0:02:58.3]} 9. a3 {[%clk 0:02:32.6]} 9... Rb8 {[%clk
0:02:57.9]} 10. Rb1 {[%clk 0:02:27.3]} 10... b5 {[%clk 0:02:58]} 11. cxb5 {[%clk
0:02:23.6]} 11... axb5 {[%clk 0:02:59.9]} 12. e4 {[%clk 0:02:20.5]} 12... Nfd4
{[%clk 0:02:59.3]} 13. Nxd4 {[%clk 0:02:20.8]} 13... Nxd4 {[%clk 0:02:55.4]} 14.
Ne2 {[%clk 0:02:21]} 14... d6 {[%clk 0:02:42.8]} 15. Nxd4 {[%clk 0:02:16.1]}
15... Bxd4 {[%clk 0:02:43.3]} 16. Be3 {[%clk 0:02:09.3]} 16... Bg7 {[%clk
0:02:34.8]} 17. d4 {[%clk 0:02:08.2]} 17... Be6 {[%clk 0:02:06.8]} 18. d5 {[%clk
0:01:53.4]} 18... Bd7 {[%clk 0:02:05.7]} 19. Qc2 {[%clk 0:01:51.6]} 19... Qa5
{[%clk 0:01:49.4]} 20. b4 {[%clk 0:01:47.5]} 20... cxb4 {[%clk 0:01:50]} 21.
axb4 {[%clk 0:01:46.9]} 21... Qa6 {[%clk 0:01:44.1]} 22. Rfc1 {[%clk 0:01:40.4]}
22... Rfc8 {[%clk 0:01:44.1]} 23. Qd2 {[%clk 0:01:39]} 23... Qa3 {[%clk
0:01:30.8]} 24. Bf1 {[%clk 0:01:23.9]} 24... Bc3 {[%clk 0:01:20.1]} 25. Qd3
{[%clk 0:01:17.8]} 25... Qa2 {[%clk 0:00:28.2]} 26. Bd4 {[%clk 0:01:02.7]} 26...
Bxd4 {[%clk 0:00:22.6]} 27. Qxd4 {[%clk 0:00:57.9]} 27... Qa3 {[%clk 0:00:12.5]}
28. Rxc8+ {[%clk 0:00:51.7]} 28... Rxc8 {[%clk 0:00:14.4]} 29. Ra1 {[%clk
0:00:47.6]} 29... Qf3 {[%clk 0:00:10.7]} 30. Bg2 {[%clk 0:00:45]} 30... Qf6
{[%clk 0:00:06.7]} 31. Qd1 {[%clk 0:00:41.5]} 31... Kg7 {[%clk 0:00:03]} 32. h4
{[%clk 0:00:38.3]} 32... Bg4 {[%clk 0:00:02.8]} 33. f3 {[%clk 0:00:32.7]} 33...
Bd7 {[%clk 0:00:03.1]} 34. Kh2 {[%clk 0:00:28.5]} 34... Qb2 {[%clk 0:00:02.6]}
35. Rb1 {[%clk 0:00:27.3]} 35... Qe5 {[%clk 0:00:03.3]} 36. f4 {[%clk
0:00:25.4]} 36... Qc3 {[%clk 0:00:03.8]} 37. Rb3 {[%clk 0:00:24.7]} 37... Qc2
{[%clk 0:00:04.6]} 38. Qd4+ {[%clk 0:00:23.9]} 38... f6 {[%clk 0:00:04.6]} 39.
Rf3 {[%clk 0:00:20.2]} 39... Rc4 {[%clk 0:00:04.3]} 40. Qa7 {[%clk 0:00:18.6]}
40... Rc7 {[%clk 0:00:05.1]} 41. Qb6 {[%clk 0:00:17.3]} 41... Bg4 {[%clk
0:00:05.7]} 42. Rf2 {[%clk 0:00:17.8]} 42... Qc4 {[%clk 0:00:05.8]} 43. Qe3
{[%clk 0:00:18.6]} 43... Qxb4 {[%clk 0:00:05.6]} 44. Qd3 {[%clk 0:00:18.8]}
44... Qc4 {[%clk 0:00:06.1]} 45. Qe3 {[%clk 0:00:19.9]} 45... Qc5 {[%clk
0:00:07.2]} 46. Qe1 {[%clk 0:00:20]} 46... b4 {[%clk 0:00:07.4]} 47. e5 {[%clk
0:00:21.5]} 47... b3 {[%clk 0:00:07.4]} 48. exf6+ {[%clk 0:00:19.6]} 48... exf6
{[%clk 0:00:09.3]} 49. Bf3 {[%clk 0:00:19.9]} 49... Bxf3 {[%clk 0:00:09.7]} 50.
Rxf3 {[%clk 0:00:21.8]} 50... b2 {[%clk 0:00:09.7]} 51. Re3 {[%clk 0:00:22.8]}
51... Qc2+ {[%clk 0:00:10]} 52. Kh3 {[%clk 0:00:23.5]} 52... b1=Q {[%clk
0:00:09.7]} 53. Re7+ {[%clk 0:00:24.3]} 53... Kh6 {[%clk 0:00:10.8]} 54. g4
{[%clk 0:00:24.7]} 54... Qxe1 {[%clk 0:00:09.7]} 0-1